Cogmind - Beta 14 @@@ ROGUE MODE // 2025.03.11 @ 19:48:00 Player: perambulator Result: Destroyed by HN-7AE(R) with Subdweller Machine Gun Performance ------------- Evolutions (0) 0 Regions Visited (3) 600 Robots Destroyed (24) 120 Value Destroyed (755) 755 Prototype IDs (0) 0 Alien Tech Used (0) 0 Bonus (21) 21 TOTAL SCORE: 1496 Bonus ------- Follower Combat Kills 21 Cogmind --------- Core Integrity 0/250 Matter 219/300 Energy 96/100 System Corruption 6% Temperature Cool (2) Movement Walking (190) Ox1 Location -10/Subcaves Parts ------- > --- POWER (1) -------- (None) > --- PROPULSION (2) --- Aluminum Leg Aluminum Leg > --- UTILITY (2) ------ Heat Sink Medium Storage Unit > --- WEAPON (2) ------- Particle Gun Bore Cannon > --- INVENTORY (10) --- Aluminum Leg Aluminum Leg Experimental Sensor Array ECM Suite Makeshift Light Armor Plating Grenade Launcher Peak State ------------ > --- POWER ------------ Ion Engine > --- PROPULSION ------- Aluminum Leg Aluminum Leg > --- UTILITY ---------- Heat Sink Medium Storage Unit > --- WEAPON ----------- Particle Gun Bore Cannon > --- INVENTORY -------- Aluminum Leg Aluminum Leg Aluminum Leg Experimental Sensor Array ECM Suite Makeshift Light Armor Plating Grenade Launcher [Rating: 13] Favorites ----------- Power Ion Engine Engine Ion Engine Propulsion Aluminum Leg Leg Aluminum Leg Utility Small Storage Unit Device Heat Sink Storage Small Storage Unit Weapon Particle Gun Energy Gun Particle Gun Ballistic Gun Assault Rifle Ballistic Cannon Bore Cannon Launcher Grenade Launcher Build | -11 -10 -10 -10 ------- Run | Yrd Mat Min Sub Slots Evolved . | . . . . Power . | . . . . Propulsion . | . . . . Utility . | . . . . Weapon . | . . . . Parts Attached 21 | 6 3 11 1 Power 5 | 1 1 3 . Engine 5 | 1 1 3 . Core . | . . . . Reactor . | . . . . Propulsion 6 | 2 1 2 1 Treads . | . . . . Leg 6 | 2 1 2 1 Wheel . | . . . . Hover . | . . . . Flight . | . . . . Utility 4 | 1 1 2 . Device 2 | . 1 1 . Storage 2 | 1 . 1 . Processor . | . . . . Hackware . | . . . . Protection . | . . . . Artifact . | . . . . Weapon 6 | 2 . 4 . Energy Gun 3 | 1 . 2 . Energy Cannon . | . . . . Ballistic Gun 1 | 1 . . . Ballistic Cannon 1 | . . 1 . Launcher 1 | . . 1 . Special Weapon . | . . . . Impact Weapon . | . . . . Slashing Weapon . | . . . . Piercing Weapon . | . . . . Special Melee Weapon . | . . . . Unidentified Prototypes . | . . . . Parts Lost 9 | . 2 5 2 Power 2 | . 1 . 1 Propulsion 4 | . 1 2 1 Utility . | . . . . Weapon 3 | . . 3 . Highest Loss Streak 5 | . 1 5 2 To Critical Strikes . | . . . . Average Slot Usage (%) 91 | . 83 97 85 Engine 12 | . 13 13 1 Leg 26 | . 25 27 27 Device 9 | . 1 13 14 Storage 14 | . 14 14 14 Energy Gun 14 | . 14 14 14 Ballistic Gun 4 | . 14 . . Ballistic Cannon 3 | . . 3 14 Launcher 5 | . . 9 . Peak Build Rating 13 | 6 7 13 13 Average Rating 8 | 4 5 10 12 On Entrance 6 | . 6 7 13 Naked Turns . | . . . . Heaviest Build 28 | 14 16 28 28 Greatest Support 20 | 20 20 20 20 Greatest Overweight (x) 4 | 1 1 4 1 Average Overweight (x) . | . . . 1 Largest Inventory Capacity 10 | 8 8 10 10 Average Capacity 8 | 6 8 8 10 Most Carried 8 | 1 5 8 7 Average Carried 5 | . 3 6 6 Final Capacity 10 | 8 8 10 10 Final Carried 7 | . 4 7 6 Class Distribution -------------------- 59% | Scavenger-Mutant 40% | Mutant Dominant Class ---------------- Mutant | -10/Materials Scavenger-Mutant | -10/Mines Scavenger-Mutant | -10/Subcaves Resources | -11 -10 -10 -10 ----------- Run | Yrd Mat Min Sub Matter Collected 708 | 228 156 324 . Remotely . | . . . . Salvage Created 895 | . 524 305 66 Parts 44 | . 31 11 2 Haulers Intercepted . | . . . . Recyclers Shooed 3 | . 2 1 . Parts Field Recycled . | . . . . Retrieved Matter . | . . . . Parts Self-Destructed 3 | . . . 3 Prevented . | . . . . Kills | -11 -10 -10 -10 ------- Run | Yrd Mat Min Sub Combat Hostiles Destroyed 21 | . 12 7 2 Guns 13 | . 12 1 . Cannons 2 | . . . 2 AOE 5 | . . 5 . Classes Destroyed 5 | . 4 . 1 Worker 1 | . 1 . . Recycler 2 | . 1 1 . Swarmer 3 | . 3 . . Grunt 16 | . 9 7 . Subdweller 2 | . . . 2 Best Kill Streak 6 | . 6 4 1 Combat Bots Only 5 | . 5 4 1 Max Kills in Single Turn 2 | . 2 1 1 Gunslinging 1 | . 1 . . Exploded 1 | . . 1 . Melee . | . . . . Uniques/NPCs Destroyed . | . . . . Combat | -11 -10 -10 -10 -------- Run | Yrd Mat Min Sub Hostile Shots Fired 120 | . 53 52 15 Missed 35 | . 15 16 4 Damage Taken 1160 | . 434 491 235 Core 254 | . 68 119 67 Absorbed by Shields . | . . . . Core Remaining (%) 100 | 100 . . . Volleys Fired 93 | . 43 40 10 Largest 2 | . 2 2 2 Hottest 122 | . 70 122 122 Shots Fired 163 | . 85 58 20 Gun 140 | . 85 45 10 Cannon 14 | . . 4 10 Launcher 9 | . . 9 . Special . | . . . . Kinetic 59 | . 43 6 10 Thermal 95 | . 42 43 10 Explosive 9 | . . 9 . Electromagnetic . | . . . . Robot Hit Streak 8 | . 7 8 4 Robot Miss Streak 4 | . 3 4 1 Penetration Max 1 | . . 1 . Secondary Targets 3 | . 2 1 . Max Gunslinging Chain 1 | . 1 1 . Shots Hit Robots 107 | . 59 34 14 Core Hits 43 | . 26 13 4 Critical Kills 2 | . . . 2 Critical Parts Destroyed 2 | . . 2 . Critical Strikes 14 | . 3 4 7 Burn 6 | . 3 2 1 Destroy 8 | . . 2 6 Melee Attacks . | . . . . Impact . | . . . . Slashing . | . . . . Piercing . | . . . . Sneak Attacks . | . . . . Combat Hostiles . | . . . . Follow-up Attacks . | . . . . Damage Inflicted 1823 | . 769 847 207 Guns 1226 | . 758 360 108 Cannons 182 | . . 83 99 Explosions 376 | . . 376 . Melee . | . . . . Ramming 39 | . 11 28 . Kinetic 590 | . 383 108 99 Thermal 818 | . 375 335 108 Explosive 376 | . . 376 . Electromagnetic . | . . . . Impact . | . . . . Slashing . | . . . . Piercing . | . . . . Highest Corruption 6 | . 6 6 6 Average Corruption 5 | . 4 6 6 Corruption Purged . | . . . . Corruption Blocked . | . . . . Effects 50 | . 7 34 9 Message Errors 11 | . 1 6 4 Matter Fused 14 | . 2 10 2 Heat Flow Errors 6 | . 2 4 . Energy Discharges 5 | . . 4 1 Parts Rejected 2 | . . 2 . Data Loss (minor) 3 | . 1 2 . Data Loss (major) 2 | . 1 1 . Misfires 3 | . . 2 1 Alerts 1 | . . 1 . Weapon Failures 3 | . . 2 1 Overload Shots . | . . . . Overflow Damage 8 | . . 8 . Projectiles . | . . . . Explosions 8 | . . 8 . Melee . | . . . . Knockbacks 5 | . . 2 3 Impact . | . . . . Kinetic 5 | . . 2 3 Secondary . | . . . . Self-Inflicted Damage . | . . . . Shots . | . . . . Rammed . | . . . . Targets Rammed 10 | . 4 6 . Kicked 10 | . 4 6 . Crushed . | . . . . Highest Temperature 505 | . 268 505 36 Average Temperature 94 | . 64 134 16 Received Heat Transfer 603 | . 234 309 60 Effects 4 | . . 4 . Shutdowns 3 | . . 3 . Interference 1 | . . 1 . Siege Activations . | . . . . Robots Corrupted . | . . . . Combat Hostiles . | . . . . Parts Fried . | . . . . Impact Corruptions . | . . . . Robots Melted 1 | . . 1 . Combat Hostiles 1 | . . 1 . Parts Melted 6 | . 1 4 1 Heat Transferred 2701 | . 1332 1036 333 Parts Sabotaged . | . . . . Parts Stolen . | . . . . Parts Stripped . | . . . . Power Chain Reactions . | . . . . Alert | -11 -10 -10 -10 ------- Run | Yrd Mat Min Sub Peak Influence 246 | . 246 150 . Initial 5 | . . 5 . Average 66 | . 85 58 . Maximum Alert Level 1 | . 1 . . Low Security (%) 97 | 100 94 100 . Level 1 2 | . 5 . . Level 2 . | . . . . Level 3 . | . . . . Level 4 . | . . . . Level 5 . | . . . . High Security . | . . . . Max Security . | . . . . Squads Dispatched 3 | . 3 . . Investigation 1 | . 1 . . Extermination . | . . . . Reinforcement 2 | . 2 . . Assault . | . . . . Garrison . | . . . . Intercept . | . . . . Searches Triggered . | . . . . Construction Impeded . | . . . . Haulers Reinforced . | . . . . Active Scanning Responses . | . . . . Cargo Convoy Interrupts . | . . . . Stealth | -11 -10 -10 -10 --------- Run | Yrd Mat Min Sub Distress Signals . | . . . . Communications Jammed . | . . . . Distress Signals . | . . . . Times Spotted 45 | . 18 24 3 Peak Tracking Total 6 | . 6 3 2 Tactical Retreats 8 | . . 8 . Traps | -11 -10 -10 -10 ------- Run | Yrd Mat Min Sub Traps Triggered 3 | . 3 . . Indirectly . | . . . . Trap Hack Attempts . | . . . . Triggered . | . . . . Disarmed . | . . . . Reprogrammed . | . . . . Reused . | . . . . Traps Extracted . | . . . . Installed . | . . . . Triggered . | . . . . Machines | -11 -10 -10 -10 ---------- Run | Yrd Mat Min Sub Machines Disabled 1 | . . 1 . Max in Single Turn 1 | . . 1 . Machines Repaired . | . . . . Machines Dismantled . | . . . . Machines Sabotaged . | . . . . Overloaded Fab Kills . | . . . . Hacking | -11 -10 -10 -10 --------- Run | Yrd Mat Min Sub Machines Accessed 2 | . 1 1 . Terminals 1 | . . 1 . Fabricators . | . . . . Repair Stations . | . . . . Recycling Units 1 | . 1 . . Scanalyzers . | . . . . Garrison Access . | . . . . Total Hacks 7 | . 3 4 . Successful 3 | . . 3 . Failed 4 | . 3 1 . Catastrophic 2 | . 2 . . Database Lockouts . | . . . . Manual . | . . . . Terminals 4 | . . 4 . Fabricators . | . . . . Repair Stations . | . . . . Recycling Units 3 | . 3 . . Scanalyzers . | . . . . Garrison Access . | . . . . Terminal Hacks 3 | . . 3 . Dispatch Records 1 | . . 1 . Patrol Status 1 | . . 1 . Zone Layout 1 | . . 1 . Fabricator Hacks . | . . . . Repair Station Hacks . | . . . . Recycling Unit Hacks . | . . . . Scanalyzer . | . . . . Garrison Access Hacks . | . . . . Unauthorized Hacks . | . . . . Terminals . | . . . . Fabricators . | . . . . Repair Stations . | . . . . Recycling Units . | . . . . Scanalyzers . | . . . . Garrison Access . | . . . . Data Cores Recovered . | . . . . Used . | . . . . Hacking Detections 2 | . 1 1 . Full Trace Events 1 | . 1 . . Feedback Events . | . . . . Feedback Blocked . | . . . . Robot Schematics Acquired . | . . . . Robots Built . | . . . . Authchips . | . . . . Time . | . . . . Total Robot Build Rating . | . . . . Part Schematics Acquired . | . . . . Parts Built . | . . . . Authchips . | . . . . Time . | . . . . Total Part Build Rating . | . . . . Parts Repaired . | . . . . Time . | . . . . Parts Recycled . | . . . . Recycled Matter . | . . . . Retrieved Matter . | . . . . Retrieved Components . | . . . . Parts Scanalyzed . | . . . . Part Schematics Acquired . | . . . . Parts Damaged . | . . . . Bothacking | -11 -10 -10 -10 ------------ Run | Yrd Mat Min Sub Used RIF Installer . | . . . . Robots Hacked . | . . . . Non-combat . | . . . . Combat . | . . . . Robot Hacks Applied . | . . . . Relay Couplers Released . | . . . . Fabnet Peak Effective % . | . . . . Robots Rewired . | . . . . Allies Hacked . | . . . . Hacks Repelled . | . . . . Allies | -11 -10 -10 -10 -------- Run | Yrd Mat Min Sub Total Allies 2 | . . 2 . Largest Group 2 | . . 2 . Highest-Rated Group 50 | . . 50 . Highest-Rated Ally 31 | . . 31 . Total Orders . | . . . . Ally Attacks 25 | . . 25 . Total Damage 298 | . . 298 . Kills 4 | . . 4 . Allies Corrupted . | . . . . Allies Melted . | . . . . Intel | -11 -10 -10 -10 ------- Run | Yrd Mat Min Sub Robot Analysis Total . | . . . . Derelict Logs Recovered 1 | . . 1 . Drone Launches . | . . . . Drone Recoveries . | . . . . Exploration | -11 -10 -10 -10 ------------- Run | Yrd Mat Min Sub Turns Passed 2846 | 122 959 1439 326 Spaces Moved 1614 | 104 508 846 156 Core 25 | 19 . 6 . Treads . | . . . . Legs 1589 | 85 508 840 156 Wheels . | . . . . Hover . | . . . . Flight . | . . . . Fastest Speed 50 | 50 120 120 190 Average Speed 143 | 109 128 147 190 Slowest Speed 250 | 120 190 250 190 Overloaded Moves . | . . . . Propulsion Burnouts . | . . . . Robots Hopped . | . . . . Cave-ins Triggered . | . . . . Exploration Rate (%) 48 | 5 78 97 12 Regions Visited 3 Branch Regions 2 Pre-discovered Areas . | . . . . Known Exits Taken . | . . . . Unknown Exits Taken 3 | 1 1 1 . Scrap Searched 3 | . . 3 . Spaces Dug . | . . . . Terrain Destroyed 44 | . . 44 . Melee . | . . . . Projectile 4 | . . 4 . AOE 40 | . . 40 . Terrain Rammed . | . . . . Walls Destroyed . | . . . . Machines Disabled . | . . . . Actions | -11 -10 -10 -10 --------- Run | Yrd Mat Min Sub Total 1978 | 110 723 978 167 Wait 209 | . 147 62 . Move 1611 | 103 507 845 156 Hop . | . . . . Pick Up 14 | 1 5 8 . Fast Attach 12 | 5 2 5 . Attach 5 | 1 1 2 1 Detach . | . . . . Swap 4 | . . 4 . Drop 6 | . . 6 . Fire 93 | . 43 40 10 Melee . | . . . . Ram . | . . . . Kick 10 | . 4 6 . Crush . | . . . . Escape Stasis . | . . . . Rewire 14 | . 14 . . Trap . | . . . . Miscellaneous . | . . . . Route ------- -11/Scrapyard -10/Materials (discovered 4 exits: [*Mat x2] / *Min x2) -10/Mines (discovered 3 exits: [*Mat x2] / [*Sub]) -10/Subcaves History --------- Turn | Location | Event 4 | -11/Scrapyard | Discovered new exit (range 15) 123 | -11/Scrapyard | Entered Materials 314 | -10/Materials | Build established: Mutant 398 | -10/Materials | Discovered new exit (range 16) 689 | -10/Materials | Discovered new exit (range 14) 776 | -10/Materials | Discovered new exit (range 4) 943 | -10/Materials | Discovered new exit (range 16) 1082 | -10/Materials | Entered Mines 1115 | -10/Mines | Core integrity fell below 50% 1153 | -10/Mines | Lost 5 parts (2n3w) 1186 | -10/Mines | Found a hidden stash of uninstalled traps 1317 | -10/Mines | Discovered new exit (range 14) 1455 | -10/Mines | Build established: Scavenger-Mutant 1543 | -10/Mines | Found a damaged Exp. Sensor Array with a note attached 1555 | -10/Mines | Found Prototype Device 1693 | -10/Mines | A weapon hastily lodged in a ceiling crevice suddenly fell to the ground 1742 | -10/Mines | Learned Materials security intel 1788 | -10/Mines | Discovered new exit (range 6) 1847 | -10/Mines | Found DCF Scrap (13 items) 2508 | -10/Mines | Discovered new exit (range 6) 2521 | -10/Mines | Entered Subcaves 2532 | -10/Subcaves | Ambushed by Subdwellers from Twisted Machinery 2538 | -10/Subcaves | Core integrity fell below 20% 2653 | -10/Subcaves | Shifting Twisted Machinery released Piercing Trap 2666 | -10/Subcaves | Shifting Twisted Machinery released Sub. Laser 2827 | -10/Subcaves | Disturbed a concealed Subdweller 2847 | -10/Subcaves | Destroyed by HN-7AE(R) with Subdweller Machine Gun Last Messages --------------- DF-J8P(R) suffers critical hit (Destroy). Sub. Laser melted. DF-J8P(R) destroyed. System corrupted: Matter fused (-5). Subatomizers dissect the Sub. Optics. 6HE9QIHJC7MPMXP8K Y7YP&CR|YG#S SRK/EEK HN-7AE(R) angrily emerges from the Twisted Machinery. HV Slug penetrates Wall. HN-7AE(R) affixes Scrap Shield Fragment to Scrap Shield. Map ----- +----------------------------------------------------+ | ???????????????#" ""?"" "&#?????????#!% = ! "" | | ??????????????## ["?" ?????????#"""% %## # | | ??????????????# ?## #??????????# " ######## | | ??????????????# ?# ##???###?######" #?###?# | | ??????????????# ### #??## ### ####?## ### | | ??????????????## ## #### ## ##??# ## | | ??????????????# ## #?# ## #### | | ??????????????## ### ## | | ???????????????# | | ???????????????# ## ## #### | | ???????????????# ### ### ## #??## | | ???????????????# #?## #### ## ##???## | | ???????????????# ##?## ### ##?????? | | ???????????????# ##### ## ##??????? | | ???????????????# ### ## ##???????? | | ???????????????# ### #????????? | | ???????????????# ### ##????????? | | ???????????????# ## ## #?????????? | | ???????????????# ### ##### #?????????? | | ???????????????# ##?# ##??# ##?????????? | | ??????????????# #??#####???# ##??????????? | | ??????????????### ##??????????# #???????????? | | ????????????????## #########???# #???????????? | | ?????????????????## ### ## ##??# ##???????????? | | ??????????????????#### #??# #????????????? | | ?????????????????????# @R #??# ##???????????? | | ?????????????????????## ## #### ###?????????? | | ??????????????????????##### ## ##????????? | | ??????????????????????# ##???????? | | ??????????????????????#" #???????? | | ??????????????????# & #???????? | | ?????????????????#$ "##" ##???????? | | ?????????????????## ?# #####????????? | | ?????????????????????## ####????????????? | | ??????????????????????# ### #???????????????? | | ??????????????????????# #??## #???????????????? | | ?????????????????????# #????#####???????????????? | | ?????????????????????# ?????????????????????????? | | ?????????????????????# #?????????????????????????? | | ?????????????????????##??????????????????????????? | | ?????????????????????????????????????????????????? | | ?????????????????????????????????????????????????? | | ?????????????????????????????????????????????????? | | ?????????????????????????????????????????????????? | | ?????????????????????????????????????????????????? | | ?????????????????????????????????????????????????? | | ?????????????????????????????????????????????????? | | ?????????????????????????????????????????????????? | | ?????????????????????????????????????????????????? | | ?????????????????????????????????????????????????? | +----------------------------------------------------+ Best States ------------- Heat Dissipation 35 Energy Generation 10 Energy Capacity 250 Matter Stores 300 Matter Capacity 300 Sight Range 16 Terrain Scan Density 10 ECM Strength 1 Evasion (%) 55 Item Schematics ----------------- None Robot Schematics ------------------ None Fabricated ------------ Nothing Alien Tech Used ----------------- None Achievements -------------- None Challenges ------------ None Game ------ Seed ImprinterCompanionBeam Manual? 0 Play Time 00:19:40 Cumulative 26.6 hours Start 2025.03.11 @ 19:11:52 End 2025.03.11 @ 19:48:00 Sessions 1 Manual Loads 0 Difficulty Rogue Special Mode None Game No. 47 Rogue 47 Adventurer 0 Explorer 0 Win Type - Total 0 Types 0/0/0/0/0/0/0/0/0 Lore% 16 Gallery% 20 Achievement% 17 Wizard Run 0 Options --------- Layout 1 ASCII 0 Keyboard 0 Movement Arrows Keybinds 0 Fullscreen 2 Font 18/SmallcapsGlow Map View 25x20 Zoom Use 100% Tactical HUD 0 Map Filters NONE Filters NONE Steam 0 RUN: d8fc2787-90a6-43c2-9290-f49321ff43a0